Workbook

Sheet Hinweise
A5: Berechnung der voraussichtlichen Direktzahlungen entsprechend der europäischen Agrarpolitik nach 2023
A6: - Basis-, Umverteilungsprämie
A7: - Junglandwirteprämie
A8: - gekoppelte Tierprämien
A9: - Prämien für Ökoregelungen (eco-schemes)
A10: - Prämien für Agrar-, Umwelt- und Klimamaßnahmen des Landes Mecklenburg-Vorpommern
A12: =IFERROR("Bearbeitungsstand: "&TEXT(MAX(Änderungen!A5:A44),"TT.MM.JJJJ"),"") -> Bearbeitungsstand: 21.03.2024
A14: Quellen
A15: GAP-Konditionalitätengesetz
A16: GAP-Direktzahlungen-Gesetz
A17: GAP-Direktzahlungen-Verordnung
A18: Förderprogramme des Ministeriums für Klimaschutz, Landwirtschaft, ländliche Räume und Umwelt MV
A20: Ansprechpartner
A21: Thomas Annen
A22: t.annen@lfa.mvnet.de
A23: 0385 588-60251
A25: Matthias Dietze
A26: m.dietze@lfa.mvnet.de
A27: 0385 588-60250
A29: Bedienungshinweis
A30: - öffnen Sie die Tabelle mit Microsoft Excel ab 2007 - bestätigen Sie "Inhalte aktivieren", "Makros aktivieren", - Geben Sie zunächst einige Angaben zum Betrieb ein (Flächenausstattung) - Planen Sie ggf. den Anbau auf Ackerland und die Tierhaltung - Wählen Sie die Ökoregelungen, an denen Sie möglicherweise teilnehmen möchten (bei einigen Programmen ergibt sich aus den Angaben, ob die Voraussetzungen erfüllt sind, dann ist nur der gewünschte Umfang einzugeben, bei anderen muss die Teilnahme durch Benutzereingabe "wahr" bestätigt werden (Zellen mit weißem Hintergrund) und danach der Umfang angegeben werden - wählen Sie die AUKM, an denen Sie möglicherweise teilnehmen möchten - lesen Sie die voraussichtlichen Folgen für die Direktzahlungen anhand der Tabelle ab
A31: Die Tabelle ist gegen versehentliches Bearbeiten der berechneten Zellen geschützt, der Blattschutz sollte daher nicht aufgehoben werden. Während der Dateneingabe werden (sofern die Makros beim Öffnen der Datei aktiviert wurden) nicht benötigte Zeilen ausgeblendet, um so die Übersichtlichkeit zu verbessern. Bei Bedarf lassen sich Zeilen auch wieder einblenden, hierzu muss nur der entsprechende Eintrag im Feld "Hilfsprogramme zum ein-/ausblenden von Zeilen" gewählt werden.
A32: Bei einigen Ökoregelungen und Agrarumwelt-und Klimamaßnahmen gelten Unter- sowie Obergrenzen. Falls diese über- oder unterschritten werden, korrigiert ein Programm dies automatisch.
A34: Haftungsausschluss
A35: Die Kalkulation beruht z. T. auf nicht endgültigen Richtlinien- und Verordnungsentwürfen, die Werte und Bedingungen können sich noch geringfügig ändern. Die meisten Prämien werden in den Verordnungen als vorläufig bezeichnet, die endgültige Höhe kann in geringem Umfang nach unten oder oben abweichen. Die berechneten Ergebnisse stellen Orientierungswerte dar und besitzen keine Rechtsverbindlichkeit. Ein Haftungsanspruch gegenüber der LFA MV wird ausgeschlossen.
A36: Die Tabelle ist gegen unbeabsichtigte Bearbeitung geschützt.
A37: Die Datei enthält Programmtext, sogenannte Makros. Die Makros haben folgende Funktionen: Automatisch: - nicht benötigte Zeilen ausblenden, - vom Benutzer eingegebene Planungswerte korrigieren, wenn sie ein vorgeschriebenes Minimum unterschreiten oder ein Maximum überschreiten, Nach Auswahl: - ausgeblendete Zeilen wieder einblenden - alle eingegebenen Werte löschen
A38: Beides dient der Benutzerfreundlichkeit, der Blattschutz sollte daher nicht aufgehoben werden und die Makros sollten beim Öffnen aktiviert werden.

Sheet Plan
A1: Hauptkulturen | B1: Code | C1: Hauptnutzungsart | D1: Sommer/Winterung | E1: Legum | F1: Kulturart | G1: KulturartEU | H1: 0
H2: 0
A3: Winterweizen | C3: A | D3: W | F3: Getreide | H3: 0
A4: Sommerweizen | C4: A | D4: S | F4: Getreide | H4: 0
A5: Wintergerste | C5: A | D5: W | F5: Getreide | H5: 0
A6: Sommergerste | C6: A | D6: S | F6: Getreide | H6: 0
A7: Roggen und Wintermenggetreide | C7: A | D7: W | F7: Getreide | H7: 0
A8: Triticale | C8: A | D8: W | F8: Getreide | H8: 0
A9: Hafer | C9: A | D9: S | F9: Getreide | H9: 0
A10: Sommermenggetreide | C10: A | D10: S | F10: Getreide | H10: 0
A11: Körnermais/Mais zum Ausreifen (einschl. CCM) | C11: A | D11: S | F11: Getreide | H11: 0
A12: Erbsen (ohne Frischerbsen) | C12: A | D12: S | E12: gK | F12: Hülsenfrüchte | H12: 0
A13: Süßlupinen | C13: A | D13: S | E13: gK | F13: Hülsenfrüchte | H13: 0
A14: Ackerbohnen | C14: A | D14: S | E14: gK | F14: Hülsenfrüchte | H14: 0
A15: Soja | C15: A | D15: S | E15: gK | F15: Hülsenfrüchte
A16: andere, großkörnige Hülsenfrüchte | C16: A | D16: S | E16: gK | F16: Hülsenfrüchte | H16: 0
A17: Winterraps | C17: A | D17: W | F17: Ölfrüchte | H17: 0
A18: Sommerraps, Winter- und Sommerrübsen | C18: A | D18: S | F18: Ölfrüchte | H18: 0
A19: Öllein (Leinsamen) | C19: A | D19: S | F19: Ölfrüchte | H19: 0
A20: Sonnenblumen | C20: A | D20: S | F20: Ölfrüchte | H20: 0
A21: andere Ölfrüchte | C21: A | F21: Ölfrüchte | H21: 0
A22: Zuckerrüben | C22: A | D22: S | F22: Hackfruchte | H22: 0
A23: Kartoffeln | C23: A | D23: S | F23: Hackfrüchte | H23: 0
A24: andere Hackfrüchte | C24: A | D24: S | F24: Hackfrüchte | H24: 0
A25: Gemüse | C25: A | D25: S | F25: Gemüse | H25: 0
A26: Handelsgewächse | C26: A | F26: andere | H26: 0
A27: Silomais/Grünmais | C27: A | D27: S | F27: Ackerfutter | H27: 0
A28: Grasanbau auf dem Ackerland | C28: A | F28: Ackerfutter | H28: 0
A29: kleinkörnige Leguminosen | C29: A | E29: kK | F29: Ackerfutter | H29: 0
A30: Feldgras/ Getreide zur Ganzpflanzenernte | C30: A | F30: Ackerfutter | H30: 0
A31: Unproduktive Ackerfläche | F31: Unproduktive AF | H31: 0
A32: Agroforst | C32: A | F32: andere | H32: 0
H33: 0
H34: 0
H35: 0
H36: 0
A37: Betriebsprämien | C37: 2023 | D37: 2024 | E37: 2025 | F37: 2026 | G37: 2027 | H37: 0
A38: Basisprämie | B38: Basisprämie | C38: 170.93 | D38: 154.72 | E38: 151.97 | F38: 147.38 | H38: 0
A39: Greeningprämie | B39: Greeningprämie | H39: 0
A40: UVP 1 (bis 30, 40) | B40: UVP 1 (bis 30, 40) | C40: 76.28 | D40: 68.39 | E40: 67.23 | F40: 65.31 | H40: 0
A41: UVP 2 (bis 46, 60) | B41: UVP 2 (bis 46, 60) | C41: 45.76 | D41: 41.03 | E41: 40.34 | F41: 39.19 | H41: 0
A42: Junglandwirteprämie (bis 120) | B42: Junglandwirteprämie (bis 120) | C42: 141.75 | D42: 134 | E42: 134 | F42: 134 | H42: 0
A43: Mutterkühe | B43: Mutterkuhprämie | C43: 85.72 | D43: 77.06 | E43: 75.76 | F43: 73.6 | H43: 0
A44: Schafe | B44: Schafprämie | C44: 38.31 | D44: 34.44 | E44: 33.86 | F44: 32.89 | H44: 0
A45: Ziegen | B45: Ziegenprämie | C45: =C44 -> 38.31 | D45: 34.44 | E45: 33.86 | F45: 32.89 | H45: 0
A46: Prämien für Ökoregelungen | C46: 2023 | D46: 2024 | E46: 2025 | F46: 2026 | G46: 2027 | H46: 0
A47: 1. Verbesserung der Biodiversität | H47: 0
A48: Aufstockung nicht produktiver Fläche | H48: 0
A49: 0.01 | B49: ÖR1a1 | C49: 1690 | D49: 1300 | E49: 1300 | F49: 1300 | H49: 0
A50: 0.02 | B50: ÖR1a2 | C50: 650 | D50: 500 | E50: 500 | F50: 500 | H50: 0
A51: 0.06 | B51: ÖR1a3 | C51: 390 | D51: 300 | E51: 300 | F51: 300 | H51: 0
A52: Blühflächen AL | B52: ÖR1b | C52: 195 | D52: 200 | E52: 200 | F52: 200 | H52: 0
A53: Blühflächen DK | B53: ÖR1c | C53: 195 | D53: 200 | E53: 200 | F53: 200 | H53: 0
A54: Altgrasstreifen auf Dauergrünland | H54: 0
A55: 0.01 | B55: ÖR1d1 | C55: 1170 | D55: 900 | E55: 900 | F55: 900 | H55: 0
A56: 0.03 | B56: ÖR1d2 | C56: 520 | D56: 400 | E56: 400 | F56: 400 | H56: 0
A57: 0.06 | B57: ÖR1d3 | C57: 260 | D57: 200 | E57: 200 | F57: 200 | H57: 0
A58: 2. Vielfältige Kulturen | B58: ÖR2 | C58: 58.5 | D58: 60 | E58: 60 | F58: 60 | H58: 0
A59: 3. Agroforst | B59: ÖR3 | C59: 78 | D59: 200 | E59: 200 | F59: 200 | H59: 0
A60: 4. Extensivierung DGL | B60: ÖR4 | C60: 149.5 | D60: 100 | E60: 100 | F60: 100 | H60: 0
A61: 5. Kennarten DGL | B61: ÖR5 | C61: 312 | D61: 240 | E61: 225 | F61: 210 | H61: 0
A62: 6. PSM-Verzicht | H62: 0
A63: Sommerungen | B63: ÖR6a | C63: 169 | D63: 150 | E63: 150 | F63: 150 | H63: 0
A64: Gras, Grünfutter, Leguminosen | B64: ÖR6b | C64: 65 | D64: 50 | E64: 50 | F64: 50 | H64: 0
A65: 7. Schutzgebietsbonus NATURA2000 | B65: ÖR7 | C65: 52 | D65: 40 | E65: 40 | F65: 40 | H65: 0
H73: 0
H74: 0
A75: Kulturart | B75: Fläche | C75: Bez. | D75: Anteil | E75: Anzahl | H75: 0
A76: Acker-Anbaufläche | B76: =SUMIFS($B$112:$B$132,$J$112:$J$132,"A") -> 0 | C76: vHAnbau | D76: =IF(Ackerfläche>0,AFanbau/Ackerfläche,0) -> 0 | E76: =COUNTIFS($J$112:$J$132,"A",$K$112:$K$132,"<=30%",$K$112:$K$132,">=10%") -> 0 | H76: 0
A77: Getreide | B77: =SUMIFS($B$112:$B$132,$I$112:$I$132,A77) -> 0 | C77: ="vH"&A77 -> vHGetreide | D77: =IFERROR(B77/AFanbau,0) -> 0 | H77: 0
A78: Silomais | B78: =SUMIFS($B$112:$B$132,$A$112:$A$132,"Silomais/Grünmais") -> 0 | C78: vHSilomais | D78: 0
A79: Getreide mit Silomais | B79: =+Getreide+Silomais -> 0 | C79: vHGetreide mit Silomais | D79: 0
A80: großkörnige Leguminosen | B80: =SUMIFS($B$112:$B$132,$M$112:$M$132,"gK") -> 0 | C80: vHgroßkörnige Leguminosen | D80: 0 | H80: 0
A81: Ölfrüchte | B81: =SUMIFS($B$112:$B$132,$I$112:$I$132,A81) -> 0 | C81: vHÖlfrüchte | D81: 0 | H81: 0
A82: Hackfrüchte | B82: =SUMIFS($B$112:$B$132,$I$112:$I$132,A82) -> 0 | C82: vHHackfrüchte | D82: 0 | H82: 0
A83: Gemüse | B83: =SUMIFS($B$112:$B$132,$I$112:$I$132,A83) -> 0 | C83: vHGemüse | D83: 0 | H83: 0
A84: Ackerfutter | B84: =SUMIFS($B$112:$B$132,$I$112:$I$132,A84) -> 0 | C84: vHAckerfutter | D84: 0 | H84: 0
A85: kleinkörnige Leguminosen | B85: =SUMIFS($B$112:$B$132,$M$112:$M$132,"kK") -> 0 | C85: vHkleinkörnige Leguminosen | D85: 0
A86: unter 10 % | B86: =SUMIFS($B$112:$B$132,$J$112:$J$132,"A",$K$112:$K$132,"<10%") -> 0 | C86: vHunter 10 % | D86: 0 | E86: =ROUNDDOWN(vHunter_10*10,0) -> 0
A87: unproduktive AF | B87: =SUMIFS($B$112:$B$132,$I$112:$I$132,A87) -> 0 | C87: vHunproduktive AF | D87: =IFERROR(B87/Ackerfläche,0) -> 0 | H87: 0
A88: DGL | B88: =SUMIFS($B$112:$B$132,$J$112:$J$132,"G") -> 0 | H88: 0
A89: Unproduktive GF | B89: =SUMIFS($B$112:$B$132,$I$112:$I$132,A89) -> 0 | C89: vHUnproduktive GF | D89: =IFERROR(B89/Dauergrünlandfläche,0) -> 0 | H89: 0
A90: DKF | B90: =SUMIFS($B$112:$B$132,$J$112:$J$132,"DK") -> 0 | H90: 0
A91: FFF | B91: =+AFanbau+DGL+B90 -> 0 | H91: 0
A92: Mindeststilllegung | B92: =IF(Planjahr>2024,4%,IF(AND(Ackerfläche>10,(vHgroßkörnige_Leguminosen+vHkleinkörnige_Leguminosen)<4%,IFERROR(Zwischenfruchtanbau/Ackerfläche<4%,4%)),4%,0)) -> 0 | H92: 0
H93: 0
H94: 0
A95: Betriebsdaten | D95: Hilfsprogramme zum ein-/ausblenden von Zeilen | H95: 1
A96: Ackerfläche | C96: =IFERROR(IF(ROUNDDOWN(Ackerfläche,0)>=ROUNDDOWN(AFPlan,0),"","Fläche im Anbauplan ist um "&TEXT((AFPlan-Ackerfläche),"0")&" ha größer als die hier genannte "&A96),"")& IFERROR(IF(ROUNDUP(Ackerfläche,0)<=ROUNDDOWN(AFPlan,0),"","Für "&TEXT(Ackerfläche-AFPlan,"0")&" ha Ackerfläche ist noch keine Nutzung geplant!"),"") ->  | H96: =IF(ISBLANK(B96),1,IF(B96>0,1,0)) -> 1
A97: Dauergrünlandfläche | H97: =IF(ISBLANK(B97),1,IF(B97>0,1,0)) -> 1
A98: Zwischenfruchtanbau (für GLÖZ 8) | H98: =Planjahr<2025 -> TRUE
A99: Dauerkulturfläche | H99: =IF(ISBLANK(B99),1,IF(B99>0,1,0)) -> 1
A100: Landwirtschaftliche Fläche | B100: =IF(SUM(B96,Dauergrünlandfläche,B99)<1,0,SUM(B96,Dauergrünlandfläche,B99)) -> 0 | H100: 1
A101: Gartenbaufläche | H101: =IF(ISBLANK(B101),1,IF(B101>0,1,0)) -> 1
A102: Unter-Glas-Fläche | H102: =IF(ISBLANK(B102),1,IF(B102>0,1,0)) -> 1
A103: Forstfläche | H103: =IF(ISBLANK(B103),1,IF(B103>0,1,0)) -> 1
A104: Fläche in NATURA 2000-Gebiet | H104: =IF(ISBLANK(B104),1,IF(B104="Ja",1,0)) -> 1
A105: Ökologischer Landbau | H105: =IF(ISBLANK(B105),1,IF(D108>0,1,0)) -> 1
A106: Tierhaltung geplant | H106: =IF(ISBLANK(Tierhaltung_geplant),1,IF(OR(Tierhaltung_geplant="Ja",RGV_DGL>0),1,0)) -> 1
B107: Ja | C107: Mindestgröße erreicht | D107: ÖLB | E107: Natura2000 | F107: Tierhaltung | H107: 0
B108: Nein | C108: =Landwirtschaftlich_genutzte_Fläche>=Mindestgröße -> FALSE | D108: =IFERROR(LEFT(Ökologischer_Landbau,2)="Ja",0) -> 0 | E108: =IFERROR(LEFT(Fläche_in_NATURA_2000_Gebiet,2)="Ja",0) -> 0 | F108: =IFERROR(OR(LEFT(Tierhaltung_geplant,2)="Ja",SUM(D136:D140)>0),0) -> 0 | H108: 0
C109: 10
A110: ="Anbauplan für Acker im Jahr " -> Anbauplan für Acker im Jahr | B110: 2024 | H110: 1
A111: Fruchtart | B111: Fläche | D111: Voraussichtliche Prämienzahlungen | H111: 1 | I111: Kulturart | J111: Hauptnutzungsart | K111: Anbauanteile | L111: S/W | M111: Legum
A112: =IF(Ackerfläche>0,"Unproduktive Ackerfläche","") ->  | D112: Einkommensgrundstützung | F112: =IFERROR(Landwirtschaftlich_genutzte_Fläche*INDEX(Basisprämie,Planjahr-2022),0) -> 0 | H112: 1 | I112: =IFERROR(VLOOKUP(A112,Hauptkulturen,6,FALSE),"") ->  | J112: =IFERROR(VLOOKUP(A112,Hauptkulturen,3,FALSE),"") ->  | K112: =IFERROR(IF(AND(LEN(J112)=1,J112="A"),B112/AFanbau,0),0) -> 0 | L112: =IFERROR(VLOOKUP(A112,Hauptkulturen,4,FALSE),"") ->  | M112: =IFERROR(VLOOKUP(A112,Hauptkulturen,5,FALSE),"") -> 
D113: Umverteilungsprämie | F113: =IFERROR(IF(Landwirtschaftlich_genutzte_Fläche>40,40,Landwirtschaftlich_genutzte_Fläche)*INDEX(UVP_1__bis_30__40,Planjahr-2022)+ IF(Landwirtschaftlich_genutzte_Fläche>60,20,IF(Landwirtschaftlich_genutzte_Fläche>40,Landwirtschaftlich_genutzte_Fläche-40,0))*INDEX(UVP_2__bis_46__60,Planjahr-2022),0) -> 0 | H113: 1 | J113: 0 | K113: 0 | L113: 0 | M113: 0
D114: Junglandwirteprämie | F114: =F157 -> 0 | H114: 1 | J114: 0 | K114: 0 | L114: 0 | M114: 0
D115: Tierhaltungsprämien | F115: =IFERROR(SUM(F136:F138),0) -> 0 | H115: 1 | J115: 0 | K115: 0 | L115: 0 | M115: 0
D116: Ökoregelungen | F116: =IFERROR(SUM(F159:F178),0) -> 0 | H116: 1 | J116: 0 | K116: 0 | L116: 0 | M116: 0
D117: Agrar-Umwelt-Klima-Maßnahmen | F117: =IFERROR(SUM(F180:F268)-SUM(F270:F388),0) -> 0 | H117: 1 | J117: 0 | K117: 0 | L117: 0 | M117: 0
D118: Summe | E118: =IFERROR(F118/Landwirtschaftlich_genutzte_Fläche,"") ->  | F118: =SUM(F112:F117) -> 0 | H118: 1 | J118: 0 | K118: 0 | L118: 0 | M118: 0
H119: 1 | J119: 0 | K119: 0 | L119: 0 | M119: 0
H120: =IF(AND(ISBLANK(A119),ISBLANK(A120)),0,1) -> 0 | J120: 0 | K120: 0 | L120: 0 | M120: 0
H121: =IF(AND(ISBLANK(A120),ISBLANK(A121)),0,1) -> 0 | J121: 0 | K121: 0 | L121: 0 | M121: 0
H122: 0 | J122: 0 | K122: 0 | L122: 0 | M122: 0
H123: 0 | J123: 0 | K123: 0 | L123: 0 | M123: 0
H124: 0 | J124: 0 | K124: 0 | L124: 0 | M124: 0
H125: 0 | J125: 0 | K125: 0 | L125: 0 | M125: 0
H126: 0 | J126: 0 | K126: 0 | L126: 0 | M126: 0
H127: 0 | J127: 0 | K127: 0 | L127: 0 | M127: 0
H128: 0 | J128: 0 | K128: 0 | L128: 0 | M128: 0
H129: 0 | J129: 0 | K129: 0 | L129: 0 | M129: 0
H130: 0 | J130: 0 | K130: 0 | L130: 0 | M130: 0
H131: 0 | J131: 0 | K131: 0 | L131: 0 | M131: 0
H132: 0 | J132: 0 | K132: 0 | L132: 0 | M132: 0
A133: Summe | B133: =SUM(B112:B132) -> 0 | H133: 1 | K133: 0
A134: =IF(Planjahr>0,"Geplante Haltung prämienberechtigter Tiere und Rauhfutterfresser für das Jahr "&TEXT(Planjahr,"0"),"Prämienberechtigte Tiere") -> Geplante Haltung prämienberechtigter Tiere und Rauhfutterfresser für das Jahr 2024 | H134: =IF(ISBLANK(Tierhaltung_geplant),1,IF(Tierhaltung,1,0)) -> 1 | I134: Minimaler Umfang
A135: Tierart | B135: Prämie | C135: Anzahl Tiere | D135: Großvieheinheiten | F135: Direktzahlungen | H135: =IF(ISBLANK(Tierhaltung_geplant),1,Tierhaltung) -> 1
A136: Mutterkühe | B136: =INDEX(Mutterkuhprämie,Planjahr-2022) -> 77.06 | D136: =C136 -> 0 | F136: =IFERROR(IF(AND(C139=0,Landwirtschaftlich_genutzte_Fläche>=1,C136>=3),C136*B136,0),0) -> 0 | H136: 1 | I136: 3
A137: Schafe | B137: =INDEX(Schafprämie,Planjahr-2022) -> 34.44 | D137: =C137*0.15 -> 0 | F137: =IFERROR(IF(AND(Landwirtschaftlich_genutzte_Fläche>=1,C137>=6),C137*B137,0),0) -> 0 | H137: 1 | I137: 6
A138: Ziegen | B138: =INDEX(Ziiegenprämie,Planjahr-2022) -> 34.44 | D138: =C138*0.15 -> 0 | F138: =IFERROR(IF(AND(Landwirtschaftlich_genutzte_Fläche>=1,C138>=6),C138*B138,0),0) -> 0 | H138: 1 | I138: 6
A139: Milchkühe | D139: =C139*1 -> 0 | H139: 1
A140: andere Rauhfutterfresser (Jungrinder, Bullen, Pferde) | E140: =IFERROR(SUM(D136:D140)/Dauergrünlandfläche,0) -> 0 | H140: 1
A141: Konditionalität | H141: 1
A142: Grundanforderungen an die Betriebsführung (GAB) und | H142: 1
A143: Erhaltung der Flächen in gutem landwirtschaftlichen und ökologischem Zustand (GLÖZ) | H143: 1
A144: sind Voraussetzung für den Bezug der Basisprämie und für die Teilnahme an Ökoregelungen und AUKM. | H144: 1
A145: GLÖZ 1: Erhalt von Dauergrünland | H145: =AND(MindGrerr,OR(Dauergrünlandfläche>0,ISBLANK(Dauergrünlandfläche))) -> FALSE
A146: GLÖZ 2: Mindestschutz für Feuchtgebiete und Moore | H146: =AND(MindGrerr,Dauergrünlandfläche>0) -> FALSE
A147: GLÖZ 3: Verbot des Abbrennens von Stoppelfeldern | H147: =AND(MindGrerr,Ackerfläche>0) -> FALSE
A148: GLÖZ 4: Mindestens 3 m Pufferstreifen entlang von Wasserläufen (ab 1000 m² auf Mindestanteil unproduktiver Ackerfläche anrechenbar) | H148: =AND(MindGrerr,Ackerfläche>10) -> FALSE
A149: GLÖZ 5: Länder teilen Flächen nach Gefährdung durch Erosion ein, auf gefährdeten Flächen gelten strengere Auflagen zur Bodenbearbeitung | H149: =AND(MindGrerr,Ackerfläche>0) -> FALSE
A150: GLÖZ 6: Mindest-Bodenbedeckung im Zeitraum vom 1.12. bis 15.1. durch mehrjährige Kulturen, Winterkulturen, Zwischenfrüchte, Stoppelbrache, Mulchauflage | H150: =AND(MindGrerr,Ackerfläche>10) -> FALSE
A151: GLÖZ 7: vorgeschriebener Fruchtwechsel auf Ackerland, bis zu 50 % durch Zwischenfrüchte möglich | H151: =IF(AND(MindGrerr,Ackerfläche>10),1,0) -> 0
A152: GLÖZ 8: Mindestens 4 % unproduktives Ackerland, angrenzende Landschaftselemente werden angerechnet | H152: =AND(MindGrerr,Ackerfläche>10) -> FALSE
A153: =IF(AND(MindGrerr,Ackerfläche>10,vHunproduktive_AF<MindestStilllegung), "Im Anbauplan wird der Mindestanteil an nicht-produktiven Ackerflächen (4 %) unterschritten! Es fehlen noch " &TEXT(ROUNDUP((4%-vHunproduktive_AF)*Ackerfläche,1),"0,0")&" ha.","") ->  | H153: =IFERROR(IF(LEN(A153)>0,1,0),1) -> 0
A154: GLÖZ 9: Schutz von Umweltsensiblem Dauergrünland | H154: =Dauergrünlandfläche>0 -> FALSE
A156: Junglandwirteprogramm | B156: Prämie | C156: Voraussetzung erfüllt / Teilnahme | D156: Umfang | E156: maximaler Umfang | F156: mögliche Direktzahlungen | H156: =IF(ISBLANK(JLP),1,IF(JLP,1,0)) -> 1
A157: Junglandwirteprämie | B157: =INDEX(Junglandwirteprämie__bis_120,Planjahr-2022) -> 134 | D157: =IF(JLP,IF(Landwirtschaftlich_genutzte_Fläche>120,120,Landwirtschaftlich_genutzte_Fläche),0) -> 0 | E157: =IFERROR(IF(Landwirtschaftlich_genutzte_Fläche>120,120,Landwirtschaftlich_genutzte_Fläche),0) -> 0 | F157: =IF(JLP,D157*B157,0) -> 0 | H157: =IF(ISBLANK(JLP),1,IF(JLP,1,0)) -> 1
A158: Ökoregelungen | B158: Prämie | C158: Voraussetzung erfüllt / Teilnahme | D158: geplanter Umfang | E158: maximaler Umfang | F158: mögliche Direktzahlungen | G158: Fördergegenstand | H158: 1 | I158: Minimaler Umfang
A159: 1. Verbesserung der Biodiversität | D159: 0 | H159: =IF(MindGrerr,Ackerfläche>0,1) -> 1
A160: Aufstockung nicht produktiver Fläche | D160: 0 | H160: 1
A161: 0.01 | B161: =INDEX(ÖR1a1,Planjahr-2022) -> 1300 | C161: =IFERROR(AND(Landwirtschaftlich_genutzte_Fläche>=1,NOT(ÖLB),vHunproduktive_AF>=MindestStilllegung+A161),0) -> FALSE | E161: =IF(C161,IF(Ackerfläche<100,1,1%*Ackerfläche),0) -> 0 | F161: =IFERROR(IF(C161,IF(ISBLANK(D161),0,MIN(E161,D161)),0)*B161,0) -> 0 | G161: 1a1 | H161: 1
A162: 0.02 | B162: =INDEX(ÖR1a2,Planjahr-2022) -> 500 | C162: =IFERROR(AND(Landwirtschaftlich_genutzte_Fläche>=1,NOT(ÖLB),vHunproduktive_AF>=MindestStilllegung+A162),0) -> FALSE | E162: =IF(C162,IF(vHunproduktive_AF>=MindestStilllegung+2%,1%,vHunproduktive_AF-MindestStilllegung-1%),0)*Ackerfläche -> 0 | F162: =IFERROR(IF(C162,IF(ISBLANK(D162),0,MIN(E162,D162)),0)*B162,0) -> 0 | G162: 1a2 | H162: 1
A163: 0.06 | B163: =INDEX(ÖR1a3,Planjahr-2022) -> 300 | C163: =IFERROR(AND(Landwirtschaftlich_genutzte_Fläche>=1,NOT(ÖLB),vHunproduktive_AF>MindestStilllegung+2%),0) -> FALSE | E163: =IF(C163,IF(vHunproduktive_AF>MindestStilllegung+A163,4%,vHunproduktive_AF-MindestStilllegung-2%),0)*Ackerfläche -> 0 | F163: =IFERROR(IF(C163,IF(ISBLANK(D163),0,MIN(E163,D163)),0)*B163,0) -> 0 | G163: 1a3 | H163: 1
A164: Blühflächen auf Ackerland | B164: =INDEX(ÖR1b,Planjahr-2022) -> 200 | C164: =AND(Landwirtschaftlich_genutzte_Fläche>=1,NOT(ÖLB),vHunproduktive_AF>0) -> FALSE | E164: =IF(AND(MindGrerr,vHunproduktive_AF>MindestStilllegung),MIN(SUM($D$161:$D$163),SUM(E161:E163),3),0) -> 0 | F164: =IFERROR(IF(C164,IF(ISBLANK(D164),0,MIN(E164,D164)),0)*B164,0) -> 0 | G164: 1b | H164: 1 | I164: 0.1
A165: Blühflächen in Dauerkulturen | B165: =INDEX(ÖR1c,Planjahr-2022) -> 200 | C165: =AND(Landwirtschaftlich_genutzte_Fläche>=1,Dauerkulturfläche>0) -> FALSE | E165: =Dauerkulturfläche -> 0 | F165: =IFERROR(IF(C165,MIN(D165,E165),0)*B165,0) -> 0 | G165: 1c | H165: =IF(MindGrerr,Dauerkulturfläche>0,1) -> 1 | I165: 0.1
A166: Altgrasflächen auf Dauergrünland | C166: =IFERROR(AND(Landwirtschaftlich_genutzte_Fläche>=1,Dauergrünlandfläche>0),0) -> FALSE | E166: =Dauergrünlandfläche*6% -> 0 | H166: =IF(MindGrerr,Dauergrünlandfläche>0,1) -> 1 | I166: 0.1
A167: 0.01 | B167: =INDEX(ÖR1d1,Planjahr-2022) -> 900 | C167: =IFERROR(AND(Landwirtschaftlich_genutzte_Fläche>=1,D166>0),0) -> FALSE | D167: =IF(C167,IF(D166>=1%*Dauergrünlandfläche,1%*Dauergrünlandfläche,D166)) -> FALSE | E167: =Dauergrünlandfläche*1% -> 0 | F167: =IFERROR(IF(C167,D167,0)*B167,0) -> 0 | G167: 1d1 | H167: =IF(MindGrerr,Dauergrünlandfläche>0,1) -> 1
A168: 0.03 | B168: =INDEX(ÖR1d2,Planjahr-2022) -> 400 | C168: =IFERROR(AND(Landwirtschaftlich_genutzte_Fläche>=1,D166>1%*Dauergrünlandfläche),0) -> FALSE | D168: =IF(C168,IF(D166>=Dauergrünlandfläche*3%,2%*Dauergrünlandfläche,D166-D167)) -> FALSE | E168: =Dauergrünlandfläche*2% -> 0 | F168: =IFERROR(IF(C168,D168,0)*B168,0) -> 0 | G168: 1d2 | H168: =IF(MindGrerr,Dauergrünlandfläche>0,1) -> 1
A169: 0.06 | B169: =INDEX(ÖR1d3,Planjahr-2022) -> 200 | C169: =IFERROR(AND(Landwirtschaftlich_genutzte_Fläche>=1,D166>3%*Dauergrünlandfläche),0) -> FALSE | D169: =IF(C169,IF(D166>=Dauergrünlandfläche*6%,3%*Dauergrünlandfläche,D166-D167-D168)) -> FALSE | E169: =Dauergrünlandfläche*3% -> 0 | F169: =IFERROR(IF(C169,D169,0)*B169,0) -> 0 | G169: 1d3 | H169: =IF(MindGrerr,Dauergrünlandfläche>0,1) -> 1
A170: ="2. Vielfältige Kulturen" &IF(AND(MindGrerr,OR(C170=0,vHGetreide_mit_Silomais>66%))," (" &IF((HK10bis30+HKunter10)<5,TEXT((HK10bis30+HKunter10),"0")&" von 5 Kulturen, ","") &IF(MAX(K112:K133)>30%,"Anbauanteil bei mindestens einer Kultur über 30 %, ","") &IF((vHgroßkörnige_Leguminosen+vHkleinkörnige_Leguminosen)<10%,"zu wenig Leguminosen, ","") &IF(vHGetreide>66%,"zu viel Getreide, ",IF(vHGetreide_mit_Silomais>66%,"möglicherweise wird Silomais zum Getreide gerechnet und der Anteil zu hoch, ",""))&")","") -> 2. Vielfältige Kulturen | B170: =INDEX(ÖR2,Planjahr-2022) -> 60 | C170: =IFERROR(AND(MindGrerr,(HK10bis30+HKunter10)>=5,(vHgroßkörnige_Leguminosen+vHkleinkörnige_Leguminosen)>=10%,vHGetreide<=66%,MAX(K112:K133)<=30%),0) -> FALSE | E170: =AFanbau -> 0 | F170: =IFERROR(IF(C170,IF(ISBLANK(D170),0,MIN(E170,D170)),0)*B170,0) -> 0 | G170: 2 | H170: =IF(MindGrerr,Ackerfläche>0,1) -> 1 | I170: =AFanbau -> 0
A171: 3. Agroforst | B171: =INDEX(ÖR3,Planjahr-2022) -> 200 | E171: =SUMIFS($B$112:$B$132,$A$112:$A$132,"Agroforst")+Dauergrünlandfläche -> 0 | F171: =IFERROR(IF(C171,IF(ISBLANK(D171),0,MIN(E171,D171)),0)*B171,0) -> 0 | G171: 3 | H171: =IF(MindGrerr,Ackerfläche>0,1) -> 1
A172: ="4. Extensivierung des gesamten Dauergrünlands"&CHAR(10)& IF(AND(MindGrerr,RGV_DGL<0.3)," (Viehbesatz um "&TEXT((0.3-RGV_DGL)*Dauergrünlandfläche,"0")&" GV"&" zu gering!)","")& IF(AND(MindGrerr,RGV_DGL>1.4)," (Viehbesatz um "&TEXT((RGV_DGL-1.4)*Dauergrünlandfläche,"0")&" GV"&" zu hoch!)","") -> 4. Extensivierung des gesamten Dauergrünlands | B172: =INDEX(ÖR4,Planjahr-2022) -> 100 | D172: =IF(C172,Dauergrünlandfläche,0) -> 0 | E172: =Dauergrünlandfläche -> 0 | F172: =IFERROR(IF(C172,IF(ISBLANK(D172),0,MIN(E172,D172)),0)*B172,0) -> 0 | G172: 4 | H172: =IF(MindGrerr,Dauergrünlandfläche>0,1) -> 1 | I172: =Dauergrünlandfläche -> 0
A173: 5. Kennarten auf Dauergrünland | B173: =INDEX(ÖR5,Planjahr-2022) -> 240 | E173: =Dauergrünlandfläche -> 0 | F173: =IFERROR(IF(C173,IF(ISBLANK(D173),0,MIN(E173,D173)),0)*B173,0) -> 0 | G173: 5 | H173: =IF(MindGrerr,Dauergrünlandfläche>0,1) -> 1
A174: 6. Verzicht auf chemisch-synthetische Pflanzenschutzmittel | D174: 0 | H174: =IF(MindGrerr,Ackerfläche>0,1) -> 1
A175: - Sommerungen und Dauerkulturen | B175: =INDEX(ÖR6a,Planjahr-2022) -> 150 | E175: =SUMIFS(B112:B132,L112:L132,"S")+Dauerkulturfläche -> 0 | F175: =IFERROR(IF(C175,IF(ISBLANK(D175),0,MIN(E175,D175)),0)*B175,0) -> 0 | G175: 6a | H175: =IF(MindGrerr,Ackerfläche>0,1) -> 1
A176: - Gras, Grünfutter, Leguminosen | B176: =INDEX(ÖR6b,Planjahr-2022) -> 50 | E176: =Ackerfutter -> 0 | F176: =IFERROR(IF(C176,IF(ISBLANK(D176),0,MIN(E176,D176)),0)*B176,0) -> 0 | G176: 6b | H176: =IF(MindGrerr,Ackerfläche>0,1) -> 1
A177: 7. Landbewirtschaftungsmethoden in NATURA2000-Gebieten | B177: =INDEX(ÖR7,Planjahr-2022) -> 40 | E177: =AFanbau -> 0 | F177: =IFERROR(IF(C177,IF(ISBLANK(D177),0,MIN(E177,D177)),0)*B177,0) -> 0 | G177: 7 | H177: =IF(ISBLANK(Fläche_in_NATURA_2000_Gebiet),0,Fläche_in_NATURA_2000_Gebiet) -> 0
D178: 0 | H178: 0
A179: Agrar-Umwelt-Klima-Maßnahmen | B179: Prämie | C179: Voraussetzung erfüllt / Teilnahme | D179: geplanter Umfang | E179: maximaler Umfang | F179: mögliche Direktzahlungen | G179: Nummerierung GAP-Strategieplan | H179: 1 | I179: Minimaler Umfang
A180: ="1. Extensivierung: " &IF(ÖLB,MID(Ökologischer_Landbau,4,20)&")","")&" Ökologischer Landbau" -> 1. Extensivierung: Ökologischer Landbau | D180: 0 | H180: =IF(ISBLANK(Ökologischer_Landbau),1,IF(Ökologischer_Landbau="Nein",0,1)) -> 1
A181: Einführung Neueinsteiger | C181: =IF(AND(ÖLB,Ökologischer_Landbau="Ja Neueinstieg"),1,0) -> 0 | D181: 0 | F181: =IFERROR(IF(C181,MIN(VALUE(D181),VALUE(E181)),0)*B181,0) -> 0 | H181: =IF(ISBLANK(Ökologischer_Landbau),1,0) -> 1
A182: Ökologischer Ackerbau | B182: 350 | C182: =IF(AND(ÖLB,Ökologischer_Landbau="Ja Neueinstieg"),1,0) -> 0 | D182: =IF(C182,Ackerfläche-Gemüse,0) -> 0 | E182: =Ackerfläche-Gemüse -> 0 | F182: =IFERROR(IF(C182,IF(ISBLANK(D182),0,MIN(E182,D182)),0)*B182,0) -> 0 | G182: EL-0108-01 a1 | H182: =IF(ISBLANK(Ökologischer_Landbau),1,IF(AND(ÖLB,Ökologischer_Landbau="Ja Neueinstieg"),1,0)) -> 1
A183: ="Ökologisches Dauergrünland"& IF(AND(MindGrerr,DGL>0,RGV_DGL<0.3)," (Viehbesatz um "&TEXT((0.3-RGV_DGL)*Dauergrünlandfläche,"0")&" GV zu gering!)","") &IF(AND(MindGrerr,RGV_DGL>1.4)," (Viehbesatz um "&TEXT((RGV_DGL-1.4)*Dauergrünlandfläche,"0")&" GV zu hoch!)","") -> Ökologisches Dauergrünland | B183: 425 | C183: =IF(AND(ÖLB,Ökologischer_Landbau="Ja Neueinstieg"),1,0) -> 0 | D183: =IF(C183,Dauergrünlandfläche,0) -> 0 | E183: =Dauergrünlandfläche -> 0 | F183: =IFERROR(IF(C183,IF(ISBLANK(D183),0,MIN(E183,D183)),0)*B183,0) -> 0 | G183: EL-0108-01 b1 | H183: =IF(ISBLANK(Ökologischer_Landbau),1,IF(AND(ÖLB,Ökologischer_Landbau="Ja Neueinstieg"),1,0)) -> 1
A184: Ökologischer Gemüsebau | B184: 630 | C184: =IF(AND(ÖLB,Ökologischer_Landbau="Ja Neueinstieg"),1,0) -> 0 | D184: =IF(C184,Gemüse,0) -> 0 | E184: =Gemüse -> 0 | F184: =IFERROR(IF(C184,IF(ISBLANK(D184),0,MIN(E184,D184)),0)*B184,0) -> 0 | G184: EL-0108-01 c1 | H184: =IF(ISBLANK(Ökologischer_Landbau),1,IF(AND(ÖLB,Ökologischer_Landbau="Ja Neueinstieg"),1,0)) -> 1
A185: Ökologische Dauerkulturen | B185: 1300 | C185: =IF(AND(ÖLB,Ökologischer_Landbau="Ja Neueinstieg"),1,0) -> 0 | D185: =IF(C185,Dauerkulturfläche,0) -> 0 | E185: =Dauerkulturfläche -> 0 | F185: =IFERROR(IF(C185,IF(ISBLANK(D185),0,MIN(E185,D185)),0)*B185,0) -> 0 | G185: EL-0108-01 d1 | H185: =IF(ISBLANK(Ökologischer_Landbau),1,IF(AND(ÖLB,Ökologischer_Landbau="Ja Neueinstieg"),1,0)) -> 1
A186: Beibehalter | C186: =IF(AND(ÖLB,Ökologischer_Landbau="Ja Beibehaltung"),1,0) -> 0 | D186: 0 | F186: =IFERROR(IF(C186,MIN(VALUE(D186),VALUE(E186)),0)*B186,0) -> 0 | H186: =IF(ISBLANK(Ökologischer_Landbau),1,0) -> 1
A187: Ökologischer Ackerbau | B187: 284 | C187: =IF(AND(ÖLB,Ökologischer_Landbau="Ja Beibehaltung"),1,0) -> 0 | D187: =IF(C187,Ackerfläche-Gemüse,0) -> 0 | E187: =Ackerfläche -> 0 | F187: =IFERROR(IF(C187,IF(ISBLANK(D187),0,MIN(E187,D187)),0)*B187,0) -> 0 | G187: EL-0108-02 a1 | H187: =IF(ISBLANK(Ökologischer_Landbau),1,IF(AND(ÖLB,Ökologischer_Landbau="Ja Beibehaltung"),1,0)) -> 1
A188: ="Ökologisches Dauergrünland"& IF(AND(MindGrerr,RGV_DGL<0.3,DGL>0)," (Viehbesatz um "&TEXT((0.3-RGV_DGL)*Dauergrünlandfläche,"0")&" GV zu gering!)","") &IF(AND(MindGrerr,RGV_DGL>1.4)," (Viehbesatz um "&TEXT((RGV_DGL-1.4)*Dauergrünlandfläche,"0")&" GV zu hoch!)","") -> Ökologisches Dauergrünland | B188: 284 | C188: =IF(AND(ÖLB,Ökologischer_Landbau="Ja Beibehaltung",RGV_DGL>=0.3),1,0) -> 0 | D188: =IF(C188,Dauergrünlandfläche,0) -> 0 | E188: =Dauergrünlandfläche -> 0 | F188: =IFERROR(IF(C188,IF(ISBLANK(D188),0,MIN(E188,D188)),0)*B188,0) -> 0 | G188: EL-0108-02 b1 | H188: =IF(ISBLANK(Ökologischer_Landbau),1,IF(AND(ÖLB,Ökologischer_Landbau="Ja Beibehaltung"),1,0)) -> 1
A189: Ökologischer Gemüsebau | B189: 490 | C189: =IF(AND(ÖLB,Ökologischer_Landbau="Ja Beibehaltung"),1,0) -> 0 | D189: =IF(C189,Gemüse,0) -> 0 | E189: =Gemüse -> 0 | F189: =IFERROR(IF(C189,IF(ISBLANK(D189),0,MIN(E189,D189)),0)*B189,0) -> 0 | G189: EL-0108-02 c1 | H189: =IF(ISBLANK(Ökologischer_Landbau),1,IF(AND(ÖLB,Ökologischer_Landbau="Ja Beibehaltung"),1,0)) -> 1
A190: Ökologische Dauerkulturen | B190: 850 | C190: =IF(AND(ÖLB,Ökologischer_Landbau="Ja Beibehaltung"),1,0) -> 0 | D190: =IF(C190,Dauerkulturfläche,0) -> 0 | E190: =Dauerkulturfläche -> 0 | F190: =IFERROR(IF(C190,IF(ISBLANK(D190),0,MIN(E190,D190)),0)*B190,0) -> 0 | G190: EL-0108-02 d1 | H190: =IF(ISBLANK(Ökologischer_Landbau),1,IF(AND(ÖLB,Ökologischer_Landbau="Ja Beibehaltung"),1,0)) -> 1
A191: Transaktionskostenausgleich | B191: 40 | C191: =IF(ÖLB,1,0) -> 0 | D191: =IF(Landwirtschaftlich_genutzte_Fläche>E191,E191,Landwirtschaftlich_genutzte_Fläche) -> 0 | E191: =IF(AND(ÖLB,C191),IF(Landwirtschaftlich_genutzte_Fläche>15,15,Landwirtschaftlich_genutzte_Fläche),0) -> 0 | F191: =IFERROR(IF(C191,IF(ISBLANK(D191),0,MIN(E191,D191)),0)*B191,0) -> 0 | G191: EL-0108-02 e1 | H191: =IF(ISBLANK(Ökologischer_Landbau),1,C191) -> 1
A192: 2. Erosionsschutz | D192: 0 | H192: =IF(MindGrerr,Landwirtschaftlich_genutzte_Fläche>0,1) -> 1
A193: Erosionsschutzflächen | B193: 500 | E193: =IF(MindGrerr, IF(UnproduktiveAF>(Ackerfläche*MindestStilllegung+SUM($D$161:$D$163,$D$196,$D$198,$D$199,$D$200)), UnproduktiveAF-Ackerfläche*MindestStilllegung-SUM($D$161:$D$163,$D$196,$D$198,$D$199,$D$200),0),0) -> 0 | F193: =IFERROR(IF(C193,IF(ISBLANK(D193),0,MIN(E193,D193)),0)*B193,0) -> 0 | G193: EL-0103-01 1a1 | H193: =IF(MindGrerr,Ackerfläche>0,1) -> 1
A194: Strip-Till/Direktsaatverfahren | B194: 65 | E194: =AFanbau -> 0 | F194: =IFERROR(IF(C194,IF(ISBLANK(D194),0,MIN(E194,D194)),0)*B194,0) -> 0 | G194: EL-0103-03 a1 | H194: =IF(MindGrerr,Ackerfläche>0,1) -> 1
A195: 3. Gewässerrandstreifen | D195: 0 | F195: =IFERROR(IF(C195,MIN(VALUE(D195),VALUE(E195)),0)*B195,0) -> 0 | H195: 1
A196: Gewässerschutz-/Uferrandstreifen | B196: 704 | E196: =IF(MindGrerr, IF(UnproduktiveAF>(Ackerfläche*MindestStilllegung+SUM($D$161:$D$163,$D$193,$D$198,$D$199,$D$200)), UnproduktiveAF-Ackerfläche*MindestStilllegung-SUM($D$161:$D$163,$D$193,$D$198,$D$199,$D$200),0),0) -> 0 | F196: =IFERROR(IF(C196,IF(ISBLANK(D196),0,MIN(E196,D196)),0)*B196,0) -> 0 | G196: EL-0102-01 a1 | H196: =IF(MindGrerr,Ackerfläche>0,1) -> 1
A197: 4. Naturschutzorientierte Ackernutzung | D197: 0 | F197: =IFERROR(IF(C197,MIN(VALUE(D197),VALUE(E197)),0)*B197,0) -> 0 | H197: 1
A198: Getreide mit doppeltem Reihenabstand | B198: 600 | E198: =IF(MindGrerr, Getreide,0) -> 0 | F198: =IFERROR(IF(C198,IF(ISBLANK(D198),0,MIN(E198,D198)),0)*B198,0) -> 0 | G198: EL-0105-03 b1 | H198: =IF(MindGrerr,Ackerfläche>0,1) -> 1
A199: Mehrjährige Blühstreifen und -flächen | B199: 800 | E199: =IF(MindGrerr, IF(UnproduktiveAF>(Ackerfläche*MindestStilllegung+SUM($D$161:$D$163,$D$196,$D$198,$D$193,$D$200)), UnproduktiveAF-Ackerfläche*MindestStilllegung-SUM($D$161:$D$163,$D$196,$D$198,$D$193,$D$200),0),0) -> 0 | F199: =IFERROR(IF(C199,IF(ISBLANK(D199),0,MIN(E199,D199)),0)*B199,0) -> 0 | G199: EL-0105-03 c1 | H199: =IF(MindGrerr,Ackerfläche>0,1) -> 1
A200: Pufferstreifen an gesetzlich geschützten Biotopen, Alleen, Waldrändern | B200: 325 | E200: =IF(MindGrerr, IF(UnproduktiveAF>(Ackerfläche*MindestStilllegung+SUM($D$161:$D$163,$D$196,$D$198,$D$199,$D$193)), UnproduktiveAF-Ackerfläche*MindestStilllegung-SUM($D$161:$D$163,$D$196,$D$198,$D$199,$D$193),0),0) -> 0 | F200: =IFERROR(IF(C200,IF(ISBLANK(D200),0,MIN(E200,D200)),0)*B200,0) -> 0 | G200: EL-0105-03 c2 | H200: =IF(MindGrerr,Ackerfläche>0,1) -> 1
A201: 5. Umweltschonender Obst- und Gemüsebau | D201: 0 | H201: =IF(MindGrerr,Dauerkulturfläche+Gemüse>0,1) -> 1
A202: 6.2.1 Bacillus thuringiensis-Präparate gegen Frostspanner im Kern- und Steinobst | B202: 123 | E202: =Dauerkulturfläche -> 0 | F202: =IFERROR(IF(C202,IF(ISBLANK(D202),0,MIN(E202,D202)),0)*B202,0) -> 0 | H202: =IF(MindGrerr,Dauerkulturfläche>0,0) -> 0 | I202: =Dauerkulturfläche -> 0 | M202: Gewächshauskulturen und/oder Gemüsebauüber Betriebsdaten?
A203: 6.2.2 Virusverfahren gegen Apfelwickler | B203: 152 | E203: 0 | F203: 0 | H203: 0 | I203: 0
A204: 6.2.3 Virusverfahren gegen Apfelschalenwickler, mind. zweimal | B204: 142 | E204: 0 | F204: 0 | H204: 0 | I204: 0
A205: 6.2.4 Virusverfahren gegen Apfelschalenwickler | B205: 54 | E205: 0 | F205: 0 | H205: 0 | I205: 0
A206: 6.2.5 Bacillus thuringiensis-Präparate gegen Schalenwickler | B206: 94 | E206: 0 | F206: 0 | H206: 0 | I206: 0
A207: 6.2.6 Neem-Präparate gegen Apfelblattlaus | B207: 225 | E207: 0 | F207: 0 | H207: 0 | I207: 0
A208: 6.2.7 ausschließlich mechanische Unkrautbekämpfung im Streifenbereich von Bäumen und Sträuchern | B208: 383 | E208: 0 | F208: 0 | H208: 0 | I208: 0
... 201 more rows

Sheet Änderungen
A1: Datum | B1: Maßnahme | C1: Anlass | D1: Text
A5: 2024-03-21 | B5: 3. Änderung GAPDZVO, GLÖZ 8 | C5: Abstimmung Bundesrat | D5: geringen Inanspruchnahme der Öko-Regelungen
A6: 2023-07-28 | B6: ÖR 1: Brache | C6: BMEL PM 26.07.2023 | D6: Mindestgröße auf 1ha gesenkt | E6: EUKomm muss noch zustimmen
A7: 2023-07-28 | B7: ÖR 3: Agroforst | C7: BMEL PM 26.07.2023 | D7: Prämie ab 2024 200 € | E7: EUKomm muss noch zustimmen
A8: 2023-07-28 | B8: ÖR 6: Verzicht PSM | C8: BMEL PM 26.07.2023 | D8: Prämie ab 2024 150 € | E8: EUKomm muss noch zustimmen
A9: 2023-07-28 | B9: ÖR Vielfältige Kulturen | C9: BMEL PM 26.07.2023 | D9: Prämie ab 2024 60 € | E9: EUKomm muss noch zustimmen
A10: 2022-11-10 | B10: ÖR Vielfältige Kulturen | C10: Hinweis von Nutzer | D10: Anbauanteile über 30 % schließen von Teilnahme aus
A11: 2022-11-10 | B11: AUKM Vielfältige Kulturen | C11: Hinweis von Nutzer | D11: Anbauanteile über 30 % schließen von Teilnahme aus
A12: 2022-11-10 | B12: Blühflächen im Obstbau | C12: Richtlinie geändert | D12: 114 statt 115 €/ha
A13: 2022-11-10 | B13: Blüh- oder Begrünungsfläche im Gemüsebau | C13: Richtlinie geändert | D13: 69 statt 71 €/ha
A14: 2022-11-09 | B14: AUKM Moorschonende Stauhaltung | C14: Richtlinie geändert | D14: Prämie von 100 auf 150 €/ha geändert
A15: 2022-11-09 | B15: Weidetierprämie | C15: Hinweis von Nutzer | D15: keine Mutterkuhprämie für Milchviehhalter
A16: 2022-08-01 | B16: AUKM Vielfältige Kulturen | C16: Richtlinie geändert | D16: Prämie von 65 auf 60 €/ha geändert
A17: 2022-08-01 | B17: AUKM Striptill | C17: Richtlinie geändert | D17: Prämie von 60 auf 65 €/ha geändert
A18: 2022-07-29 | B18: ÖR Vielfältige Kulturen | D18: Prämie von 30 auf 45 €/ha geändert
A19: 2022-07-27 | B19: Programm | C19: Bedienerfreundlichkeit | D19: Dialogfeld, falls Fläche für Maßnahmen eingegeben werden, aber das Feld 'Voraussetzung erfüllt' noch nicht 'ja' ist
A20: 2022-07-26 | B20: AUKM Ökologischer Landbau | C20: Richtlinie geändert | D20: Fördersatz für Ackerland von 244 auf 284 €/ha geändert
A21: 2022-07-25 | B21: ÖR Vielfältige Kulturen | C21: Hinweis von Nutzer | D21: Anbauanteile beziehen sich auf die Anbaufläche (vorher Ackerfläche)
A22: 2022-07-25 | B22: AUKM Vielfältige Kulturen | C22: Hinweis von Nutzer | D22: Anbauanteile beziehen sich auf die Anbaufläche (vorher Ackerfläche)
A23: 2022-07-25 | B23: ÖR Vielfältige Kulturen | C23: Hinweis von Nutzer | D23: Kulturen mit weniger als 10 % Anbauanteil werden zusammengefasst (vorher nicht berücksichtigt)
A24: 2022-07-25 | B24: AUKM Vielfältige Kulturen | C24: Hinweis von Nutzer | D24: Kulturen mit weniger als 10 % Anbauanteil werden zusammengefasst (vorher nicht berücksichtigt)
A25: 2022-12-07 | B25: AUKM Erosionsschutz | C25: Richtlinie geändert | D25: 6.3 Strip-Till/Direktsaatverfahren
A26: 2022-12-07 | B26: Abzugsbetrag Extensivierung DGL im ökologischen Landbau | C26: Richtlinie geändert | D26: 50 statt 30 €
A27: 2022-12-15 | B27: Hinweis, dass Silomais möglicherweise zu Getreide zählt | C27: Richtlinie geändert | E27: Silomais/Grünmais | F27: 20
E28: Winterweizen | F28: 20
E29: Süßlupinen | F29: 10
E30: Winterraps | F30: 20
E31: Wintergerste | F31: 20
